bitfinex/quotes_ETHUSD_20250622
["timestamp","ask_amount","ask_price","bid_price","bid_amount"]
[1750611228445,0.7723,2196.3,2195.7,0.805]
[1750611228788,8.0954,2196.2,2195.7,0.7777]
[1750611229146,8.037,2196.2,2195.8,0.0273]
[1750611229795,0.7723,2196.5,2195.8,13.16776788]
[1750611229959,8.037,2196.1,2195.9,1.42640086]
[1750611230786,8.037,2196.1,2196.0,0.0273]
[1750611230944,0.7723,2196.5,2196.0,0.0273]
[1750611231151,8.036,2196.4,2195.9,1.39910086]
[1750611231351,8.036,2196.3,2196.0,0.0625]
[1750611231863,0.7723,2196.9,2196.1,10.8161]
[1750611232193,8.037,2196.5,2196.3,0.0566]
[1750611233094,8.037,2196.5,2196.2,2.40021011]
[1750611233259,2.284,2196.9,2196.3,13.19706788]
[1750611233478,8.036,2196.8,2196.5,0.8154]
[1750611233684,8.036,2196.8,2196.6,1.13814]
[1750611233884,8.036,2196.8,2196.7,0.0566]
[1750611234186,8.036,2196.8,2196.6,1.08154]
[1750611234407,0.8156,2197.5,2196.6,1.08154]
[1750611234583,0.8156,2197.5,2197.0,10.872]
[1750611234898,8.035,2197.4,2197.0,13.21664679]
[1750611235100,8.035,2197.4,2197.0,13.27324679]
[1750611235684,3.1615,2197.8,2197.1,0.10211146]
[1750611235898,8.034,2197.7,2197.2,0.0566]
[1750611236971,2.284,2198.0,2197.3,10.0]
[1750611237178,0.8156,2198.1,2197.6,0.0566]
[1750611237389,2.284,2198.4,2197.5,10.8154]
[1750611237390,8.033,2198.0,2197.5,10.8154]
[1750611237803,8.033,2198.0,2197.6,0.0566]
[1750611238009,8.033,2198.0,2197.6,0.50672603]
[1750611238209,0.0619,2198.3,2197.6,0.0566]
[1750611238427,8.032,2198.2,2197.6,0.0566]
[1750611238626,8.032,2198.2,2197.6,2.12865501]
[1750611239299,0.0619,2197.8,2197.1,0.8131]
[1750611239602,8.031,2197.7,2197.1,0.8131]
[1750611239806,0.0619,2197.6,2196.9,0.0566]
[1750611239977,0.8084,2197.5,2196.8,0.8131]
[1750611240183,0.0619,2197.4,2196.8,0.8131]
[1750611240619,0.0619,2197.4,2196.8,1.26710053]
[1750611240798,0.0619,2197.4,2196.8,0.45400053]
[1750611241010,0.55,2197.4,2196.7,10.0566]
[1750611241196,8.03,2197.3,2196.8,0.04551956]
[1750611241391,8.0919,2197.3,2196.7,10.0]
[1750611241597,8.03,2197.3,2196.8,2.37296952]
[1750611241804,8.03,2197.3,2196.7,10.0]
[1750611241805,0.0619,2197.2,2196.7,10.0]
[1750611242013,8.03,2197.3,2196.7,10.0]
[1750611242320,0.0619,2197.2,2196.7,10.0]
[1750611242714,8.03,2197.3,2196.7,10.0]
[1750611244736,0.0619,2197.4,2196.7,10.0]
[1750611244889,8.029,2197.3,2196.7,12.45427952]
[1750611245598,0.8084,2197.1,2196.7,10.0]
[1750611245998,0.0619,2197.0,2196.7,10.0]
[1750611246407,8.027,2196.9,2196.7,10.0]
[1750611247336,0.0619,2196.8,2196.6,3.84164511]
[1750611248220,8.027,2196.9,2196.6,3.84164511]
[1750611248547,8.0889,2196.9,2196.6,3.84164511]
[1750611249153,0.0619,2196.8,2196.6,3.84164511]
[1750611250135,8.027,2196.9,2196.6,3.84164511]
[1750611250435,8.0889,2196.9,2196.6,3.84164511]
[1750611250934,8.027,2196.9,2196.6,3.84164511]
[1750611251140,8.025,2196.8,2196.6,3.84164511]
[1750611251637,8.025,2196.8,2196.7,10.0395]
[1750611251838,8.025,2196.8,2196.7,10.0]
[1750611252039,8.025,2196.8,2196.7,10.0395]
[1750611253206,8.025,2196.8,2196.7,10.0]
[1750611253819,8.0869,2196.8,2196.7,10.0]
[1750611254720,8.025,2196.8,2196.7,10.0]
[1750611256859,8.022,2196.8,2196.7,11.42879153]
[1750611257040,3.0774,2197.3,2196.7,11.48539153]
[1750611257229,8.022,2197.2,2196.8,0.8536]
[1750611257435,8.022,2197.2,2196.8,0.797]
[1750611258228,8.022,2197.2,2196.8,0.8536]
[1750611258557,8.022,2197.2,2196.9,0.0566]
[1750611258755,8.022,2197.2,2196.8,2.97273]
[1750611258926,8.022,2197.2,2196.8,3.02933]
[1750611259320,0.8833,2197.0,2196.7,10.0]
[1750611259966,0.0619,2196.9,2196.6,3.84164511]
[1750611261954,8.02,2196.9,2196.8,13.95635258]
[1750611262156,8.02,2196.9,2196.8,10.0]
[1750611264369,0.0585,2196.7,2196.1,1.368679]
[1750611265068,0.0585,2196.3,2196.1,1.368679]
[1750611265230,0.0585,2196.3,2195.5,0.0396]
[1750611265231,0.55,2196.1,2195.5,0.8304]
[1750611265430,0.55,2195.9,2195.6,0.8007]
[1750611265630,0.0585,2195.7,2195.1,0.7908]
[1750611265833,8.016,2195.6,2195.1,0.8304]
[1750611266034,8.016,2195.6,2195.2,0.8007]
[1750611266632,8.016,2195.5,2195.3,10.0604]
[1750611266837,8.016,2195.5,2195.4,2.07648318]
[1750611267275,8.016,2195.5,2195.3,10.4543755]
[1750611267276,0.8007,2195.8,2195.3,0.4543755]
[1750611267471,8.015,2195.5,2194.9,0.7908]
[1750611267644,8.015,2195.5,2195.1,0.8007]
[1750611268633,0.8592,2195.8,2195.2,0.0604]
[1750611268848,10.3485,2195.7,2195.2,0.0604]
[1750611269049,10.29,2195.7,2195.3,0.0604]
[1750611269264,8.016,2195.6,2195.4,9.85817877]
[1750611269481,8.016,2195.6,2195.3,0.8875]
[1750611270040,8.016,2195.6,2195.3,0.8271]
[1750611270246,8.0745,2195.6,2195.2,0.4607135]
[1750611270446,8.0745,2195.6,2195.1,0.8007]
[1750611270644,8.016,2195.6,2195.1,0.8007]
[1750611270840,0.55,2195.4,2194.7,0.89988163]
[1750611271047,0.0585,2195.3,2194.7,0.18727928]
[1750611272454,0.55,2195.2,2194.6,1.369779]
[1750611272675,0.0585,2195.0,2194.6,1.369779]
[1750611272855,8.015,2194.9,2194.6,1.369779]
[1750611273053,0.8153,2194.8,2194.1,0.7767]
[1750611273259,0.8153,2194.8,2194.5,1.36986]
[1750611273681,8.015,2194.9,2194.5,1.36986]
[1750611274086,0.0585,2194.7,2194.1,0.7767]
[1750611274301,8.015,2194.9,2194.0,0.45369524]
[1750611274302,0.8738,2194.5,2194.0,0.45369524]
[1750611274501,0.8738,2194.5,2193.9,1.370241]
[1750611274860,0.0585,2194.3,2193.9,1.370241]
[1750611275007,8.015,2194.2,2193.8,0.45552006]
[1750611275205,0.8738,2194.1,2193.7,1.370367]
[1750611275503,0.8738,2194.1,2193.2,0.7767]
[1750611275504,0.55,2194.0,2193.2,0.7767]
[1750611275805,0.55,2194.0,2193.4,1.370573]
[1750611275990,14.0353,2194.5,2193.8,0.0604]
[1750611276196,8.014,2194.4,2194.1,0.0604]
[1750611277403,8.014,2194.4,2194.1,0.52171385]
[1750611277606,8.014,2194.4,2194.1,0.0604]
[1750611278190,8.014,2194.4,2194.0,10.0604]
[1750611278395,8.014,2194.4,2194.1,0.0604]
[1750611278606,8.014,2194.4,2194.1,2.05225788]
[1750611280002,8.014,2194.4,2194.1,1.99185788]
[1750611280306,8.014,2194.4,2194.2,10.871]
[1750611280505,0.8153,2194.7,2194.2,10.871]
[1750611280806,8.015,2194.3,2194.2,10.871]
[1750611281136,0.8153,2194.7,2194.2,12.20192832]
[1750611281619,8.014,2194.6,2194.3,0.10597171]
[1750611281822,8.014,2194.5,2194.4,0.0604]
[1750611282110,11.773,2195.4,2194.5,0.8106]
[1750611282314,2.275,2195.2,2194.6,0.0604]
[1750611282519,2.275,2195.2,2194.5,0.8106]
[1750611282819,0.0585,2195.3,2194.5,0.8106]
[1750611283004,8.0725,2195.1,2194.5,0.8106]
[1750611283184,8.0725,2195.1,2194.5,1.369835]
[1750611283387,0.827,2195.0,2194.3,0.8106]
[1750611283618,0.0585,2194.9,2194.3,0.8106]
[1750611283817,0.0585,2194.9,2194.4,1.369941]
[1750611284021,2.3335,2194.8,2194.1,0.4464253]
[1750611284322,2.3335,2194.8,2194.2,1.370047]
[1750611287492,2.3335,2194.8,2194.1,0.50567688]
[1750611287493,0.0585,2194.6,2194.1,0.44527688]
[1750611287692,3.103,2195.0,2194.3,10.0604]
[1750611287894,0.0585,2195.2,2194.1,1.13162769]
[1750611287895,8.011,2194.9,2194.6,10.0604]
[1750611288412,8.011,2194.8,2194.6,10.0]
[1750611288613,8.011,2194.8,2194.5,10.72917877]
[1750611288614,8.011,2194.8,2194.5,0.871]
[1750611289211,8.0695,2194.8,2194.2,10.871]
[1750611289415,8.011,2194.8,2194.3,1.33726597]
[1750611289726,8.0695,2194.8,2194.3,1.33726597]
[1750611290096,0.827,2194.7,2194.3,1.33726597]
[1750611290496,0.8855,2194.7,2194.2,10.0]
[1750611291512,0.0585,2194.6,2194.2,10.0]
[1750611292406,0.827,2194.7,2194.2,10.0]
[1750611292606,0.8881,2194.7,2194.2,10.0]
[1750611293213,10.273,2194.6,2194.2,10.0]
[1750611293531,0.827,2194.7,2194.3,0.0595]
[1750611293738,8.008,2194.5,2194.3,0.0595]
[1750611294524,0.827,2194.7,2194.3,0.0595]
[1750611294734,8.008,2194.4,2194.3,0.0595]
[1750611294945,8.008,2194.4,2194.2,11.26402815]
[1750611295929,8.008,2194.4,2194.2,10.0]
[1750611296132,8.008,2194.4,2194.1,11.370032]
[1750611296745,8.008,2194.4,2194.1,1.370032]
[1750611296897,8.0691,2194.4,2194.1,1.370032]
[1750611297238,0.0611,2194.2,2194.0,0.45964949]
[1750611297445,0.0611,2194.1,2193.8,1.370032]
[1750611297645,0.0611,2194.1,2193.5,1.29377476]
[1750611297949,0.0611,2194.1,2193.7,1.370032]
[1750611299245,2.265,2194.2,2193.7,1.370032]
[1750611299450,2.265,2194.2,2193.7,1.429532]
[1750611299931,2.3261,2194.2,2193.7,1.429532]
[1750611300133,2.3261,2194.2,2193.7,1.370032]
[1750611300559,0.7578,2194.3,2193.7,1.370032]
[1750611300722,0.7578,2194.3,2193.8,19.93030745]
[1750611300928,8.004,2194.3,2194.2,10.0595]
[1750611301324,8.004,2194.3,2194.2,23.23205455]
[1750611301839,8.004,2194.3,2194.2,10.0]
[1750611302155,8.004,2194.3,2194.2,24.31454455]
[1750611302761,0.8082,2194.9,2194.3,10.0]
[1750611302961,8.003,2194.8,2194.3,10.0]
[1750611303118,8.003,2194.8,2194.4,0.0595]
[1750611303323,8.003,2194.7,2194.4,0.04556622]
[1750611303539,8.003,2194.7,2194.5,0.0595]
[1750611304361,0.7953,2194.6,2194.2,1.08249]
[1750611304656,0.7953,2194.6,2194.2,0.0595]
[1750611305230,0.8564,2194.6,2194.1,0.7613]
[1750611305422,0.8564,2194.6,2194.1,0.8208]
[1750611306077,0.7953,2194.6,2193.5,0.46187476]
[1750611306221,0.8564,2194.4,2193.7,1.83764886]
[1750611306425,8.001,2194.3,2193.8,10.0]
[1750611306625,8.001,2194.3,2193.9,0.0595]
[1750611306859,8.0621,2194.3,2193.7,1.83764886]
[1750611307066,0.7953,2194.8,2194.1,10.0]
[1750611307247,0.7953,2194.8,2194.4,10.0595]
[1750611307248,8.0,2194.7,2194.4,10.0595]
[1750611307449,0.0611,2194.6,2193.9,0.7751]
[1750611307652,0.0611,2194.6,2194.0,1.08346]
[1750611308963,10.265,2194.7,2194.1,10.0]
[1750611309170,7.999,2194.6,2194.1,10.0]
[1750611309369,7.999,2194.5,2194.2,0.1050703]
[1750611309575,7.999,2194.5,2194.3,0.0595]
[1750611310661,7.999,2194.5,2194.2,0.0455703]
[1750611310840,7.998,2194.9,2194.5,0.0595]
[1750611311036,2.265,2195.2,2194.8,0.0595]
[1750611311251,7.998,2195.1,2194.8,0.0595]
[1750611311568,0.7566,2195.3,2194.9,1.369616]
[1750611311879,7.998,2195.0,2194.7,0.8346]
[1750611312055,7.998,2195.0,2194.8,1.369672]
[1750611313164,7.998,2195.0,2194.8,1.429172]
[1750611313368,0.7566,2195.3,2194.9,0.0595]
[1750611313531,7.996,2195.2,2195.0,0.0595]
[1750611314430,7.996,2195.2,2194.9,11.2204272]
[1750611314431,7.996,2195.2,2194.9,10.0595]
[1750611314633,10.946,2195.4,2195.0,0.0595]
[1750611315068,7.995,2195.3,2195.0,0.0595]
[1750611315568,7.995,2195.2,2195.0,0.0595]
[1750611316132,3.0906,2195.5,2195.0,12.29798878]
[1750611316133,2.265,2195.5,2195.0,12.29798878]
[1750611316338,7.994,2195.4,2195.1,0.0595]
[1750611316856,0.8256,2195.7,2195.1,0.10505159]
[1750611317047,7.994,2195.6,2195.1,0.04555159]
[1750611317248,7.994,2195.6,2195.0,10.0]
[1750611317249,7.994,2195.6,2195.2,0.0595]
[1750611317447,3.0906,2195.7,2195.1,0.0595]
[1750611317745,2.265,2195.7,2195.3,10.7676]
[1750611317945,7.993,2195.6,2195.5,0.0595]
[1750611318353,7.993,2195.6,2194.9,10.0]
[1750611318354,0.0611,2195.4,2194.9,10.0]
[1750611318548,0.8256,2195.5,2194.8,1.87974701]
[1750611318878,8.0531,2195.4,2194.8,1.82024701]
[1750611320882,0.8256,2195.5,2195.0,0.0595]
[1750611321173,7.99,2195.4,2195.0,0.7906]
[1750611321373,7.99,2195.4,2195.2,0.0595]
[1750611321574,7.99,2195.4,2195.1,10.0]
[1750611321764,7.99,2195.4,2195.1,11.50602793]
[1750611321963,7.99,2195.4,2195.2,0.0595]
[1750611322161,7.99,2195.4,2195.1,10.0]
[1750611322858,0.801,2195.7,2195.2,0.04555165]
[1750611323060,7.989,2195.6,2195.2,0.8114]
[1750611323378,7.989,2195.6,2195.3,0.0584]
[1750611323952,7.989,2195.6,2195.2,0.8114]
[1750611324153,7.989,2195.6,2195.1,10.0]
[1750611324347,3.0376,2195.9,2195.2,0.0584]
[1750611324552,3.0376,2195.9,2195.2,0.10394562]
[1750611324782,7.987,2195.8,2195.2,0.10394562]
[1750611325147,7.987,2195.7,2195.5,10.8698]
[1750611325583,2.253,2196.2,2195.5,10.8698]
[1750611325798,7.987,2196.1,2195.6,2.07467834]
[1750611325944,7.987,2196.1,2195.6,2.13307834]
[1750611326364,8.0449,2196.1,2195.6,2.13307834]
[1750611327095,8.0449,2196.1,2195.6,2.07467834]
[1750611327295,2.253,2196.2,2195.6,2.13307834]
[1750611327518,7.986,2196.1,2195.7,11.29444783]
[1750611327811,2.253,2196.2,2195.7,11.29444783]
[1750611328008,7.984,2196.1,2195.7,11.29444783]
[1750611328711,7.984,2196.1,2195.8,0.0584]
[1750611328919,2.252,2196.6,2196.0,0.8098]
[1750611329079,2.252,2196.6,2196.1,10.0]
[1750611329262,7.983,2196.5,2196.1,12.07907149]
[1750611329465,7.983,2196.5,2196.2,4.94692781]
[1750611329767,2.252,2196.6,2196.2,4.94692781]
[1750611329962,7.983,2196.5,2196.2,4.99245825]
[1750611330209,0.55,2197.1,2196.4,0.8098]
[1750611330509,7.983,2197.0,2196.4,0.8098]
[1750611331112,7.983,2197.0,2196.4,2.39131278]
[1750611331342,0.0579,2197.1,2196.5,0.0455217]
[1750611331542,0.0579,2197.1,2196.4,12.49523452]
[1750611331842,7.981,2197.0,2196.4,12.44971278]
[1750611333451,0.7863,2196.9,2196.2,4.94692781]
[1750611333734,0.7863,2196.9,2196.3,10.0]
[1750611333903,0.0579,2196.7,2196.3,10.0]
[1750611334533,10.231,2196.8,2196.3,10.44659512]
[1750611334709,0.0579,2196.7,2196.3,10.44659512]
[1750611335139,10.231,2196.8,2196.3,10.44659512]
[1750611336504,0.0579,2196.7,2196.3,10.44659512]
[1750611336903,0.0579,2196.6,2196.3,0.44659512]
[1750611337128,7.976,2196.5,2196.2,4.94692781]
[1750611337408,7.976,2196.5,2196.2,6.71668279]
[1750611337630,7.976,2196.5,2196.2,4.94692781]
[1750611338143,7.976,2196.5,2196.2,5.00532781]
[1750611338728,7.976,2196.5,2196.2,4.94692781]
[1750611339507,8.0339,2196.5,2196.2,4.94692781]
[1750611339959,7.976,2196.5,2196.2,5.3952947]
[1750611340160,0.0579,2196.4,2196.2,5.3952947]
[1750611340503,7.976,2196.5,2196.2,10.44836689]
[1750611340813,0.8442,2196.3,2196.2,0.44836689]
[1750611341014,7.976,2196.5,2196.2,5.68820915]
[1750611341224,7.973,2196.4,2196.2,5.74660915]
[1750611341437,7.973,2196.3,2196.2,7.11907007]
[1750611342427,7.973,2196.3,2196.2,17.11907007]
[1750611343106,7.973,2196.3,2196.2,16.48600915]
[1750611343306,7.973,2196.3,2196.2,16.93077378]
[1750611344159,7.973,2196.3,2196.2,16.13297378]
[1750611344670,10.2819,2196.3,2196.2,6.13297378]
[1750611344955,10.224,2196.3,2196.2,6.13297378]
[1750611345139,7.97,2196.3,2196.2,6.13297378]
[1750611345824,8.0279,2196.3,2196.2,6.13297378]
[1750611346525,7.97,2196.3,2196.2,6.13297378]
[1750611349113,2.251,2196.8,2196.3,0.0584]
[1750611349318,7.967,2196.7,2196.3,11.74519572]
[1750611349617,7.967,2196.6,2196.3,11.68679572]
[1750611349829,7.967,2196.6,2196.4,0.0584]
[1750611351146,7.967,2196.5,2196.3,11.68679572]
[1750611351446,3.0239,2197.1,2196.5,0.858]
[1750611351638,7.966,2197.0,2196.5,0.7996]
[1750611351827,7.966,2197.0,2196.6,0.04552054]
[1750611352033,7.966,2197.0,2196.7,0.0584]
[1750611352709,7.966,2197.0,2196.5,0.7996]
[1750611352948,7.966,2197.0,2196.6,10.0604]
[1750611353113,7.966,2197.0,2196.6,10.0]
[1750611353314,8.7819,2197.0,2196.5,0.7996]
[1750611353515,0.0586,2196.8,2196.2,6.13297378]
[1750611353715,0.8159,2196.7,2196.2,6.13297378]
[1750611353935,2.24,2196.6,2196.2,6.13297378]
[1750611354277,0.8745,2196.3,2196.2,16.13297378]
[1750611354434,0.8745,2196.3,2196.2,5.68820915]
[1750611356038,0.55,2196.0,2195.4,0.7818]
[1750611356387,7.962,2195.9,2195.6,10.0604]
[1750611356585,7.962,2195.9,2195.6,12.07647315]
[1750611356791,7.962,2195.9,2195.6,10.0]
[1750611357092,7.962,2195.9,2195.5,9.93738339]
[1750611357653,7.962,2195.9,2195.5,10.3834619]
[1750611357865,7.962,2195.9,2195.6,10.0]
[1750611359357,7.962,2195.9,2195.6,10.0604]
[1750611359594,7.962,2195.9,2195.7,0.0604]
[1750611359892,7.962,2195.9,2195.6,10.0]
[1750611360080,7.96,2195.8,2195.6,10.0]
[1750611360398,7.96,2195.8,2195.6,10.0604]
[1750611360888,0.8018,2196.2,2195.7,0.0604]
[1750611361195,7.96,2196.1,2195.8,13.90385763]
[1750611361398,7.96,2196.1,2195.9,0.0604]
[1750611361606,3.5918,2196.4,2195.9,10.1059391]
[1750611361607,7.959,2196.0,2195.9,10.1059391]
[1750611361907,2.24,2196.5,2195.9,10.0604]
[1750611362220,3.0418,2196.8,2196.3,0.811]
[1750611362382,2.24,2196.8,2196.5,10.0]
[1750611362725,7.959,2196.7,2196.5,10.0]
[1750611363271,8.0176,2196.7,2196.4,10.0]
[1750611363566,7.959,2196.7,2196.4,1.13546]
[1750611364474,7.959,2196.7,2196.4,1.07506]
[1750611364818,7.959,2196.7,2196.3,2.119285]
[1750611365001,7.959,2196.7,2196.3,0.7506]
[1750611365184,7.957,2196.6,2196.3,0.7506]
[1750611365613,0.0586,2196.4,2195.5,13.65973614]
[1750611365771,0.0586,2196.1,2195.6,2.68935655]
[1750611366104,0.7639,2196.2,2195.5,1.24497851]
[1750611366304,7.956,2196.1,2195.6,0.7639]
[1750611366503,0.0586,2196.0,2195.6,0.7639]
[1750611367615,7.956,2196.1,2195.6,0.7639]
[1750611367811,8.0146,2196.1,2195.6,0.7639]
[1750611368171,7.956,2196.1,2195.5,0.44607851]
[1750611368371,8.0146,2196.1,2195.3,11.15527232]
[1750611368620,0.7991,2195.9,2195.3,1.15527232]
[1750611369002,0.7991,2195.9,2195.5,1.244978]
[1750611369308,0.0586,2195.8,2195.3,1.15527232]
[1750611369522,0.0586,2195.8,2195.3,1.60428223]
[1750611370025,0.0586,2195.8,2195.3,0.77728223]
[1750611370530,0.7991,2195.9,2195.3,2.26377975]
[1750611371549,0.7991,2196.1,2195.5,10.0604]
[1750611371748,7.953,2195.8,2195.7,0.0604]
[1750611372248,7.952,2195.8,2195.7,0.0604]
[1750611372649,7.952,2195.8,2195.6,0.827]
[1750611372841,7.952,2195.8,2195.5,10.0]
[1750611373347,8.0106,2195.8,2195.3,0.77728223]
[1750611373536,7.952,2195.8,2195.4,0.0604]
[1750611374169,7.952,2195.8,2195.3,10.77728223]
[1750611374317,0.7991,2196.1,2195.4,0.0604]
[1750611374515,0.7991,2196.1,2195.5,10.0]
[1750611374747,8.0096,2196.0,2195.5,10.0]
[1750611375449,8.0096,2196.0,2195.5,10.0604]
[1750611375947,8.0096,2196.0,2195.5,10.0]
[1750611376313,0.0586,2196.0,2195.5,10.0604]
[1750611376518,7.95,2195.9,2195.5,10.0604]
[1750611377133,7.95,2195.9,2195.5,10.0]
[1750611377552,7.95,2195.9,2195.5,10.0604]
[1750611377856,7.95,2195.9,2195.5,12.85769044]
[1750611378059,7.95,2195.9,2195.6,0.0604]
[1750611379224,7.95,2195.9,2195.6,0.8693]
[1750611379427,7.949,2195.8,2195.6,0.8693]
[1750611380658,3.0391,2196.1,2195.4,2.178122]
[1750611380863,7.948,2195.7,2195.6,0.0604]
[1750611381152,7.947,2195.7,2195.6,0.0604]
[1750611381759,0.793,2196.3,2195.6,0.0604]
[1750611382058,7.947,2196.2,2195.6,0.0604]
[1750611382630,8.009,2196.2,2195.6,0.061]
[1750611382835,7.947,2196.2,2195.7,10.0]
[1750611383145,7.947,2196.2,2195.8,0.061]
[1750611383346,3.021,2196.3,2195.8,0.061]
[1750611383545,7.945,2196.2,2195.7,10.0]
[1750611383737,0.062,2196.1,2195.7,10.0]
[1750611383934,8.007,2196.2,2195.7,11.35353324]
[1750611384153,7.945,2196.2,2195.7,11.35353324]
[1750611384324,7.945,2196.2,2195.8,0.061]
[1750611384525,8.007,2196.2,2195.7,11.35353324]
[1750611384724,8.007,2196.2,2195.7,10.061]
[1750611385558,8.007,2196.2,2195.7,11.35353324]
[1750611385761,7.945,2196.2,2195.7,11.29253324]
[1750611385948,0.062,2196.1,2195.7,10.0]
[1750611386825,7.945,2196.2,2195.5,10.29554042]
[1750611387026,0.062,2196.1,2195.4,10.8089]
[1750611387238,0.062,2196.1,2195.4,23.96215763]
[1750611388063,0.062,2196.1,2195.5,0.061]
[1750611390024,0.855,2196.3,2195.7,13.15325763]
[1750611390230,7.94,2196.2,2195.8,10.061]
[1750611390644,7.94,2196.2,2195.8,0.061]
[1750611391650,0.7669,2196.5,2195.8,0.8143]
[1750611391839,7.939,2196.4,2195.8,0.8143]
[1750611392467,0.7669,2196.5,2195.8,0.8143]
[1750611392668,7.938,2196.3,2195.8,0.7533]
[1750611392873,7.938,2196.3,2195.9,0.061]
[1750611393446,2.227,2196.4,2195.8,10.7533]
[1750611393677,0.55,2196.7,2196.2,0.7594]
[1750611393678,7.937,2196.3,2196.2,0.7594]
[1750611394032,2.227,2197.0,2196.2,0.7594]
[1750611394169,7.937,2196.9,2196.4,10.0]
[1750611394373,7.937,2196.8,2196.4,10.061]
[1750611394568,7.937,2196.8,2196.5,0.061]
[1750611395293,7.937,2196.8,2196.4,12.39736576]
[1750611395466,0.062,2196.7,2196.3,10.0]
[1750611395671,7.998,2196.7,2196.3,0.44510317]
[1750611395991,7.998,2196.7,2196.2,0.7594]
[1750611396391,7.998,2196.7,2196.3,10.0]
[1750611396890,0.7536,2196.6,2195.9,0.8204]
[1750611397189,0.8156,2196.6,2195.9,0.8204]
[1750611397360,0.062,2196.5,2195.9,0.7594]
[1750611397685,0.7536,2196.6,2195.9,0.7594]
[1750611397686,7.933,2196.4,2195.9,3.33308827]
[1750611397894,7.933,2196.4,2196.1,0.061]
[1750611398293,7.933,2196.4,2195.9,1.21709011]
[1750611398592,7.933,2196.4,2195.9,1.27809011]
[1750611398593,7.995,2196.4,2195.9,1.27809011]
[1750611399401,7.995,2196.4,2195.9,1.21709011]
[1750611399595,0.062,2196.3,2195.9,1.21709011]
[1750611399910,0.612,2196.2,2195.7,1.368929]
[1750611400065,0.55,2195.8,2195.1,0.061]
[1750611400261,0.062,2195.6,2195.1,0.061]
[1750611401610,1.3808,2195.6,2194.9,0.8171]
[1750611402497,8.6988,2195.6,2195.0,10.10655552]
[1750611402819,8.6988,2195.6,2195.0,10.061]
[1750611403789,7.93,2195.6,2195.0,10.0]
[1750611404022,7.93,2195.6,2195.3,10.8103]
[1750611404399,0.8801,2195.9,2195.3,11.25730378]
[1750611404720,7.929,2195.8,2195.5,25.65129978]
[1750611404923,7.929,2195.8,2195.6,10.0]
[1750611405230,7.928,2195.9,2195.8,0.061]
[1750611405445,7.928,2196.4,2196.1,0.061]
[1750611405730,7.928,2196.4,2196.2,0.061]
[1750611405943,7.928,2196.4,2196.2,1.46345576]
[1750611406102,7.928,2196.5,2196.2,1.40245576]
[1750611406297,7.928,2196.5,2196.2,1.46345576]
[1750611406760,7.928,2196.5,2196.2,1.40245576]
[1750611407254,2.228,2196.8,2196.5,0.061]
[1750611407438,7.927,2196.7,2196.5,2.38242576]
[1750611407640,7.927,2196.7,2196.5,2.32142576]
[1750611409213,7.927,2196.7,2196.5,2.78794034]
[1750611409694,7.989,2196.7,2196.5,0.46651458]
[1750611409843,7.989,2196.7,2196.2,11.40245576]
[1750611410040,7.989,2196.7,2196.1,6.99396105]
[1750611411184,7.989,2196.7,2196.1,7.44638042]
[1750611411350,7.927,2196.7,2196.1,7.44638042]
[1750611412787,0.8257,2196.5,2196.1,6.63608042]
[1750611413291,0.059,2196.4,2196.1,6.63608042]
[1750611414800,0.8257,2196.5,2196.1,6.63608042]
[1750611414961,0.059,2196.4,2196.1,6.63608042]
[1750611416797,0.8257,2196.5,2196.1,6.63608042]
[1750611416997,0.059,2196.4,2196.1,6.63608042]
[1750611417196,0.059,2196.4,2196.1,6.63013442]
[1750611417411,0.8257,2196.5,2196.1,6.63013442]
[1750611417709,0.059,2196.4,2196.1,6.63013442]
[1750611417893,7.918,2196.3,2196.1,6.63013442]
[1750611419805,7.918,2196.3,2196.1,6.17771505]
[1750611419976,0.059,2196.2,2196.1,6.17771505]
[1750611420631,0.811,2196.2,2196.1,6.17771505]
[1750611420916,7.916,2196.2,2196.1,6.17771505]
[1750611421719,7.975,2196.2,2196.1,6.17771505]
[1750611422630,7.916,2196.2,2196.1,6.17771505]
[1750611424068,7.913,2196.2,2196.1,6.17771505]
[1750611424486,7.972,2196.2,2196.1,6.17771505]
[1750611424921,7.913,2196.2,2196.1,6.17771505]
[1750611425344,0.55,2196.6,2196.1,6.99101505]
[1750611425487,7.913,2196.2,2196.1,6.17771505]
[1750611428625,7.911,2196.2,2196.1,6.23811505]
[1750611428918,7.911,2196.2,2196.1,8.29731286]
[1750611429909,0.55,2197.1,2196.1,8.29731286]
[1750611429910,10.9463,2196.9,2196.2,10.8405]
[1750611430231,7.909,2196.8,2196.3,0.0604]
[1750611430606,0.8233,2197.6,2196.6,0.7801]
[1750611430800,10.18,2197.5,2196.7,0.0604]
[1750611430998,0.8233,2197.3,2196.6,10.7801]
[1750611431222,0.059,2197.2,2196.5,0.0604]
[1750611431422,0.55,2197.1,2196.5,0.0604]
[1750611431723,7.908,2197.0,2196.5,0.0604]
[1750611432228,0.8233,2196.9,2196.4,10.8405]